bitfinex/quotes_BTCUSD_20251230
["timestamp","ask_amount","ask_price","bid_price","bid_amount"]
[1767071504820,0.01071424,87320.0,87312.0,0.01145317]
[1767071504999,0.01071424,87319.0,87312.0,0.01145317]
[1767071505322,0.01071424,87318.0,87311.0,0.01145331]
[1767071505469,0.01071424,87317.0,87311.0,0.01145331]
[1767071505671,0.01148,87323.0,87311.0,0.01145331]
[1767071505672,0.01071424,87316.0,87312.0,0.01145317]
[1767071505872,0.01148,87323.0,87311.0,0.01145331]
[1767071506072,0.01071431,87322.0,87311.0,0.01145331]
[1767071506329,0.01071431,87321.0,87315.0,0.01145278]
[1767071506582,7e-08,87320.0,87316.0,0.01145265]
[1767071506786,0.01148,87323.0,87320.0,0.01145213]
[1767071507056,0.01148,87323.0,87317.0,0.01145252]
[1767071507259,0.01148,87323.0,87319.0,0.01145226]
[1767071507420,0.01148,87327.0,87320.0,0.53157275]
[1767071507635,0.01148,87327.0,87319.0,0.01145226]
[1767071508234,0.01148,87327.0,87318.0,0.01145239]
[1767071508432,0.01148,87327.0,87319.0,0.01145226]
[1767071508651,0.01148,87327.0,87317.0,0.53157314]
[1767071508854,0.01148,87327.0,87318.0,0.01145239]
[1767071509265,0.01148,87327.0,87317.0,0.53157314]
[1767071509845,0.01148,87327.0,87318.0,0.01145239]
[1767071510062,0.01148,87327.0,87319.0,0.01145226]
[1767071511649,0.01097,87327.0,87319.0,0.01145226]
[1767071511856,0.01148,87329.0,87319.0,0.01145226]
[1767071512258,0.01148,87329.0,87319.0,0.52012062]
[1767071513276,0.01148,87329.0,87318.0,0.01145239]
[1767071514182,0.02293094,87329.0,87315.0,0.01145278]
[1767071514355,0.01148,87329.0,87317.0,0.01145252]
[1767071514556,0.01148,87329.0,87318.0,0.01145239]
[1767071514856,0.01148,87329.0,87317.0,0.01145252]
[1767071515240,0.02293094,87329.0,87316.0,0.0687157]
[1767071515454,0.02293094,87329.0,87316.0,0.0566957]
[1767071515619,0.01148,87329.0,87317.0,0.01145252]
[1767071516462,0.01148,87329.0,87316.0,0.01145265]
[1767071516626,0.02293094,87329.0,87317.0,0.01145252]
[1767071517004,0.02293094,87329.0,87318.0,0.01145239]
[1767071517005,0.01148,87329.0,87318.0,0.01145239]
[1767071517591,0.01148,87329.0,87317.0,0.01145252]
[1767071518602,0.01071222,87328.0,87317.0,0.01145252]
[1767071518799,0.01071222,87327.0,87317.0,0.01145252]
[1767071519051,0.01071222,87326.0,87317.0,0.01145252]
[1767071519252,0.01148,87329.0,87317.0,0.01145252]
[1767071519656,0.02293094,87329.0,87317.0,0.01145252]
[1767071519954,0.01148,87329.0,87318.0,0.01145239]
[1767071520472,0.01148,87329.0,87317.0,0.01145252]
[1767071520821,0.01148,87329.0,87318.0,0.01145239]
[1767071521381,0.01148,87329.0,87317.0,0.01145252]
[1767071521683,0.02293094,87329.0,87316.0,0.01145265]
[1767071521829,0.01148,87329.0,87318.0,0.01145239]
[1767071522025,0.01148,87329.0,87317.0,0.01145252]
[1767071522222,0.01148,87329.0,87318.0,0.01145239]
[1767071522396,0.02293094,87329.0,87317.0,0.01145252]
[1767071522816,0.01148,87329.0,87317.0,0.01145252]
[1767071523024,0.01148,87329.0,87318.0,0.01145239]
[1767071523354,0.01148,87329.0,87317.0,0.01145252]
[1767071523508,0.02293094,87329.0,87317.0,0.01145252]
[1767071523952,0.02293094,87329.0,87316.0,0.01145265]
[1767071524353,0.02293094,87329.0,87317.0,0.01145252]
[1767071524554,0.01148,87329.0,87317.0,0.01145252]
[1767071525617,0.01148,87329.0,87318.0,0.01145239]
[1767071526720,0.01148,87329.0,87316.0,0.01145265]
[1767071527258,0.01148,87329.0,87318.0,0.01145239]
[1767071528419,0.01148,87329.0,87317.0,0.01145252]
[1767071529529,0.01148,87329.0,87318.0,0.01145239]
[1767071529731,0.01148,87329.0,87317.0,0.01145252]
[1767071530365,0.02293094,87329.0,87316.0,0.01145265]
[1767071530563,0.04761265,87329.0,87317.0,0.01145252]
[1767071530934,0.04761265,87329.0,87313.0,0.14724]
[1767071530935,0.01145108,87328.0,87313.0,0.14724]
[1767071531176,0.02216465,87327.0,87313.0,0.15869304]
[1767071531374,0.02216478,87326.0,87313.0,0.15869304]
[1767071531588,0.02216491,87325.0,87313.0,0.15869304]
[1767071531780,0.01071344,87324.0,87313.0,0.15869304]
[1767071531979,0.01071344,87323.0,87313.0,0.14724]
[1767071532191,0.01071344,87322.0,87313.0,0.14724]
[1767071532393,0.01071344,87321.0,87313.0,0.14724]
[1767071532617,0.01071344,87320.0,87313.0,0.14724]
[1767071532820,0.01071344,87319.0,87313.0,0.14724]
[1767071532941,0.0114516,87324.0,87313.0,0.14724]
[1767071533144,0.01145213,87320.0,87313.0,0.14724]
[1767071533362,0.01071414,87319.0,87309.0,0.01148]
[1767071533568,0.01071414,87318.0,87309.0,0.01148]
[1767071533771,4.14e-06,87317.0,87309.0,0.01148]
[1767071533972,0.01145199,87321.0,87309.0,0.02293357]
[1767071534182,0.01145186,87322.0,87309.0,0.02293357]
[1767071534402,0.01145173,87323.0,87310.0,0.01145344]
[1767071535013,0.01145199,87321.0,87309.0,0.02293357]
[1767071535751,0.01145186,87322.0,87309.0,0.02293357]
[1767071536082,0.01145186,87322.0,87310.0,0.01145344]
[1767071537234,0.01145186,87322.0,87309.0,0.02293357]
[1767071537636,0.01145199,87321.0,87309.0,0.02293357]
[1767071538665,0.01145186,87322.0,87309.0,0.02293357]
[1767071538872,0.06871041,87323.0,87309.0,0.02293357]
[1767071538873,0.01145173,87323.0,87310.0,0.01145344]
[1767071540656,0.01145186,87322.0,87310.0,0.01145344]
[1767071541907,0.01145173,87323.0,87311.0,0.01145331]
[1767071542309,0.01145173,87323.0,87310.0,0.01145344]
[1767071542517,0.01145173,87323.0,87311.0,0.01145331]
[1767071543416,0.01145173,87323.0,87309.0,0.01148]
[1767071543780,0.01145186,87322.0,87310.0,0.01145344]
[1767071544002,0.01145173,87323.0,87310.0,0.01145344]
[1767071545820,0.01070881,87322.0,87310.0,0.01145344]
[1767071546020,0.01145121,87327.0,87314.0,0.01145291]
[1767071546021,0.01070881,87321.0,87314.0,0.01145291]
[1767071546220,0.01145134,87326.0,87314.0,0.01145291]
[1767071546420,0.01145121,87327.0,87315.0,0.01145278]
[1767071547113,0.06873492,87329.0,87314.0,0.01145291]
[1767071547114,0.02293094,87329.0,87317.0,0.01145252]
[1767071547311,0.01148,87329.0,87317.0,0.01145252]
[1767071547543,0.02293094,87329.0,87316.0,0.01145265]
[1767071547739,0.02293094,87329.0,87317.0,0.01145252]
[1767071548145,0.02293094,87329.0,87316.0,0.14686265]
[1767071548285,0.01145108,87328.0,87316.0,0.14686265]
[1767071548477,0.02293094,87329.0,87316.0,0.14686265]
[1767071548683,0.02293094,87329.0,87317.0,0.01145252]
[1767071549346,0.01145108,87328.0,87316.0,0.14686265]
[1767071550156,0.02293094,87329.0,87317.0,0.01145252]
[1767071550504,0.02293094,87329.0,87316.0,0.14686265]
[1767071550874,0.02293094,87329.0,87316.0,0.13541]
[1767071550985,0.02293094,87329.0,87316.0,0.14686265]
[1767071550986,0.01145108,87328.0,87316.0,0.14686265]
[1767071551187,0.01145108,87328.0,87316.0,0.13541]
[1767071551425,0.01145108,87328.0,87316.0,0.14686265]
[1767071551658,0.02293094,87329.0,87316.0,0.14686265]
[1767071553430,0.01148,87329.0,87317.0,0.01145252]
[1767071554312,0.01148,87329.0,87316.0,0.14686265]
[1767071554528,0.02293094,87329.0,87316.0,0.14686265]
[1767071554728,4.943e-05,87336.0,87323.0,0.01145173]
[1767071554879,0.01148,87335.0,87323.0,0.01145173]
[1767071555265,0.02293016,87335.0,87323.0,0.01145173]
[1767071555506,0.01145029,87334.0,87322.0,0.01145186]
[1767071555714,0.01145029,87334.0,87321.0,0.01145199]
[1767071555878,0.01145029,87334.0,87322.0,0.01145186]
[1767071556074,0.01145029,87334.0,87321.0,0.01145199]
[1767071556957,0.01145029,87334.0,87322.0,0.01145186]
[1767071557369,0.01145042,87333.0,87320.0,0.14686213]
[1767071557572,0.000549,87322.0,87320.0,0.13541]
[1767071557907,0.01145081,87330.0,87320.0,0.13541]
[1767071558245,0.01070268,87329.0,87320.0,0.13541]
[1767071558469,0.01070268,87328.0,87320.0,0.13541]
[1767071558612,0.01070268,87327.0,87320.0,0.13541]
[1767071558816,0.01070268,87326.0,87320.0,0.13541]
[1767071559017,0.01070268,87325.0,87320.0,0.14686213]
[1767071559213,0.01145055,87332.0,87320.0,0.14686213]
[1767071559474,0.01069945,87331.0,87320.0,0.14686213]
[1767071559691,0.01069945,87330.0,87320.0,0.14686213]
[1767071559869,0.01069945,87329.0,87320.0,0.14686213]
[1767071560072,0.01069945,87328.0,87321.0,0.01145199]
[1767071560402,0.01069945,87327.0,87320.0,0.14686213]
[1767071560636,0.01069945,87326.0,87320.0,0.14686213]
[1767071560785,0.01069945,87325.0,87320.0,0.14686213]
[1767071560991,0.01145068,87331.0,87320.0,0.13541]
[1767071561173,0.01069927,87330.0,87320.0,0.13541]
[1767071561509,0.01069927,87329.0,87320.0,0.13541]
[1767071561693,0.01069927,87328.0,87320.0,0.13541]
[1767071561888,0.01069927,87327.0,87320.0,0.13541]
[1767071562208,0.01069927,87326.0,87320.0,0.14686213]
[1767071562371,0.02293016,87335.0,87320.0,0.20412233]
[1767071562571,0.01145055,87332.0,87320.0,0.14686213]
[1767071562758,0.0106974,87331.0,87321.0,0.01145199]
[1767071562956,0.01145029,87334.0,87321.0,0.01145199]
[1767071563164,0.01145042,87333.0,87321.0,0.01145199]
[1767071563790,0.01145029,87334.0,87322.0,0.01145186]
[1767071564009,0.01145055,87332.0,87321.0,0.01145199]
[1767071564227,0.01145042,87333.0,87321.0,0.01145199]
[1767071564393,0.01145055,87332.0,87320.0,0.66681468]
[1767071564723,0.01145068,87331.0,87320.0,0.65536255]
[1767071564924,0.01145055,87332.0,87320.0,0.66681468]
[1767071565858,0.01145042,87333.0,87321.0,0.01145199]
[1767071565973,0.01145055,87332.0,87320.0,0.66681468]
[1767071566359,0.01145029,87334.0,87322.0,0.01145186]
[1767071566492,0.01145042,87333.0,87321.0,0.01145199]
[1767071568526,0.01145068,87331.0,87320.0,0.13541]
[1767071569352,0.01145055,87332.0,87320.0,0.14686213]
[1767071569546,0.01145068,87331.0,87320.0,0.13541]
[1767071569749,0.01145055,87332.0,87320.0,0.13541]
[1767071570276,0.01145055,87332.0,87320.0,0.14686213]
[1767071570418,0.01145042,87333.0,87321.0,0.01145199]
[1767071570623,0.01145055,87332.0,87320.0,0.14686213]
[1767071570860,0.01145042,87333.0,87321.0,0.01145199]
[1767071571070,0.01145055,87332.0,87320.0,0.14686213]
[1767071571284,0.01145055,87332.0,87320.0,0.13541]
[1767071571587,0.01145055,87332.0,87320.0,0.66681468]
[1767071571798,0.01145068,87331.0,87320.0,0.65536255]
[1767071572003,0.01145055,87332.0,87320.0,0.65536255]
[1767071572004,0.01145055,87332.0,87320.0,0.66681468]
[1767071572460,0.01145055,87332.0,87320.0,0.65536255]
[1767071572669,0.01145055,87332.0,87320.0,0.66681468]
[1767071573957,0.01145055,87332.0,87320.0,0.65536255]
[1767071574159,0.01145055,87332.0,87320.0,0.66681468]
[1767071574624,0.01145055,87332.0,87320.0,0.14686213]
[1767071574974,0.01070117,87331.0,87320.0,0.14686213]
[1767071575138,0.01070117,87330.0,87320.0,0.13541]
[1767071575343,0.01070117,87329.0,87320.0,0.13541]
[1767071575541,0.01070117,87328.0,87320.0,0.13541]
[1767071575751,0.01070117,87327.0,87320.0,0.13541]
[1767071576026,0.01070117,87326.0,87320.0,0.13541]
[1767071576159,0.01070117,87325.0,87320.0,0.13541]
[1767071576364,0.01070117,87324.0,87320.0,0.13541]
[1767071576576,0.01145055,87332.0,87320.0,0.13541]
[1767071576818,0.01070252,87331.0,87320.0,0.13541]
[1767071577027,0.01070252,87330.0,87320.0,0.13541]
[1767071577224,0.01070252,87329.0,87320.0,0.13541]
[1767071577397,0.01145055,87332.0,87320.0,0.13541]
[1767071577398,0.01070252,87328.0,87320.0,0.13541]
[1767071577619,0.01070252,87327.0,87320.0,0.14686213]
[1767071577974,0.01070252,87326.0,87320.0,0.14686213]
[1767071578159,0.01070252,87325.0,87320.0,0.14686213]
[1767071578358,0.01070252,87324.0,87320.0,0.14686213]
[1767071578566,0.01145055,87332.0,87320.0,0.14686213]
[1767071578714,0.01070325,87331.0,87321.0,0.01145199]
[1767071578908,0.01070325,87330.0,87321.0,0.01145199]
[1767071579115,3.25e-06,87329.0,87321.0,0.01145199]
[1767071579317,0.0361107,87333.0,87321.0,0.01145199]
[1767071579520,0.33116845,87361.0,87320.0,0.14686213]
[1767071579521,0.03083191,87346.0,87325.0,0.06870823]
[1767071579728,0.03083191,87346.0,87329.0,0.01145094]
[1767071579729,0.01144937,87341.0,87329.0,0.01145094]
[1767071579945,0.01159521,87343.0,87330.0,0.01145081]
[1767071580116,0.01144924,87342.0,87330.0,0.01145081]
[1767071581448,0.0001461,87343.0,87332.0,0.01145055]
[1767071581634,0.0001461,87343.0,87333.0,0.01145042]
[1767071581973,0.06869085,87348.0,87334.0,0.01145029]
[1767071582113,0.02292832,87349.0,87337.0,0.0114499]
[1767071582324,0.01148,87349.0,87338.0,0.01144976]
[1767071582564,0.01144845,87348.0,87336.0,0.01145003]
[1767071582742,0.01144859,87347.0,87335.0,0.01145016]
[1767071582942,0.01144845,87348.0,87336.0,0.01145003]
[1767071583370,0.01144859,87347.0,87334.0,0.01145029]
[1767071583566,0.01144859,87347.0,87335.0,0.01145016]
[1767071583883,0.01144845,87348.0,87335.0,0.01145016]
[1767071584041,0.01144859,87347.0,87335.0,0.01145016]
[1767071584469,0.01144872,87346.0,87334.0,0.01145029]
[1767071584682,0.01144845,87348.0,87335.0,0.01145016]
[1767071584983,0.01144845,87348.0,87336.0,0.01145003]
[1767071585387,0.01144845,87348.0,87334.0,0.01145029]
[1767071585388,0.01144872,87346.0,87334.0,0.01145029]
[1767071585570,0.01144859,87347.0,87335.0,0.01145016]
[1767071585765,0.01144872,87346.0,87334.0,0.01145029]
[1767071586166,0.01144859,87347.0,87334.0,0.01145029]
[1767071586402,0.000549,87334.0,87333.0,0.01148]
[1767071586615,0.01144898,87344.0,87333.0,0.01148]
[1767071587195,0.01144911,87343.0,87333.0,0.01148]
[1767071587399,0.01144898,87344.0,87333.0,0.01148]
[1767071587752,0.01144911,87343.0,87333.0,0.01148]
[1767071589684,0.01144924,87342.0,87333.0,0.01148]
[1767071589866,0.01144911,87343.0,87333.0,0.01148]
[1767071590457,0.01144898,87344.0,87333.0,0.01148]
[1767071590844,0.01144911,87343.0,87333.0,0.01148]
[1767071591277,0.01069096,87342.0,87333.0,0.01148]
[1767071591478,0.01069096,87341.0,87333.0,0.01148]
[1767071591701,0.01144898,87344.0,87333.0,0.01148]
[1767071591877,0.0106914,87343.0,87333.0,0.01148]
[1767071592077,0.0106914,87342.0,87333.0,0.01148]
[1767071592272,0.0106914,87341.0,87333.0,0.01148]
[1767071592461,0.01144898,87344.0,87333.0,0.01148]
[1767071592658,0.01069097,87343.0,87333.0,0.01148]
[1767071592904,0.01069097,87342.0,87333.0,0.01148]
[1767071593096,0.01069097,87341.0,87333.0,0.01148]
[1767071593299,0.01144898,87344.0,87333.0,0.01148]
[1767071593512,0.01069076,87343.0,87333.0,0.01148]
[1767071593695,0.01069058,87342.0,87333.0,0.01148]
[1767071593910,0.01069058,87341.0,87333.0,0.01148]
[1767071594113,0.01144898,87344.0,87333.0,0.01148]
[1767071594314,0.01069045,87343.0,87333.0,0.01148]
[1767071594535,0.01069045,87342.0,87333.0,0.01148]
[1767071594705,0.01069045,87341.0,87333.0,0.01148]
[1767071594895,0.01144898,87344.0,87333.0,0.01148]
[1767071595121,0.01069039,87343.0,87333.0,0.01148]
[1767071595322,0.01069039,87342.0,87333.0,0.01148]
[1767071595522,0.01144898,87344.0,87333.0,0.01148]
[1767071595523,0.01069039,87341.0,87333.0,0.01148]
[1767071595839,0.01144911,87343.0,87333.0,0.01148]
[1767071596032,0.01069064,87342.0,87333.0,0.01148]
[1767071596199,0.01069064,87341.0,87333.0,0.01148]
[1767071596395,0.01144911,87343.0,87333.0,0.01148]
[1767071596632,0.01069076,87342.0,87333.0,0.01148]
[1767071596859,0.01069076,87341.0,87333.0,0.01148]
[1767071597013,0.01144898,87344.0,87333.0,0.01148]
[1767071597280,0.01069135,87343.0,87333.0,0.01148]
[1767071597448,0.01069135,87342.0,87333.0,0.01148]
[1767071597650,0.01069135,87341.0,87333.0,0.01148]
[1767071597853,0.01144898,87344.0,87333.0,0.01148]
[1767071598057,0.01069161,87343.0,87333.0,0.01148]
[1767071598256,0.01069161,87342.0,87333.0,0.01148]
[1767071598426,0.01069161,87341.0,87333.0,0.01148]
[1767071598621,0.01144898,87344.0,87333.0,0.01148]
[1767071598823,0.01069191,87343.0,87333.0,0.01148]
[1767071599022,0.01069191,87342.0,87333.0,0.01148]
[1767071599258,0.01069191,87341.0,87333.0,0.01148]
[1767071599458,0.01144911,87343.0,87333.0,0.01148]
[1767071599658,0.01069233,87342.0,87333.0,0.01148]
[1767071599875,0.01069233,87341.0,87333.0,0.01148]
[1767071600079,0.01144911,87343.0,87333.0,0.01148]
[1767071600255,0.01069252,87342.0,87333.0,0.01148]
[1767071600429,0.01069252,87341.0,87333.0,0.01148]
[1767071600635,0.01144898,87344.0,87333.0,0.01148]
[1767071601000,0.01069288,87343.0,87333.0,0.01148]
[1767071601197,0.01069288,87342.0,87333.0,0.01148]
[1767071601395,0.01069288,87341.0,87333.0,0.01148]
[1767071601633,0.01069288,87340.0,87333.0,0.01148]
[1767071601836,0.01144911,87343.0,87333.0,0.01148]
[1767071602017,0.01069352,87342.0,87333.0,0.01148]
[1767071602380,0.01069352,87341.0,87333.0,0.01148]
[1767071602587,0.01069352,87340.0,87333.0,0.01148]
[1767071602797,0.01144898,87344.0,87333.0,0.01148]
[1767071602980,0.01069436,87343.0,87333.0,0.01148]
[1767071603190,0.01069436,87342.0,87333.0,0.01148]
[1767071603392,0.01069436,87341.0,87333.0,0.01148]
[1767071603630,0.01069436,87340.0,87333.0,0.01148]
[1767071603831,0.01144911,87343.0,87333.0,0.01148]
[1767071604064,0.01069536,87342.0,87333.0,0.01148]
[1767071604269,0.01069536,87341.0,87333.0,0.01148]
[1767071604483,0.01069536,87340.0,87333.0,0.01148]
[1767071604661,0.01144898,87344.0,87333.0,0.01148]
[1767071604832,0.01069661,87343.0,87333.0,0.01148]
[1767071605043,0.01069661,87342.0,87333.0,0.01148]
[1767071605247,0.01069661,87341.0,87333.0,0.01148]
[1767071605417,0.01069661,87340.0,87333.0,0.01148]
[1767071605611,0.01069661,87339.0,87333.0,0.01148]
[1767071605854,0.01144911,87343.0,87333.0,0.01148]
[1767071606053,0.01069806,87342.0,87333.0,0.01148]
[1767071606266,0.01069806,87341.0,87333.0,0.01148]
[1767071606462,0.01069806,87340.0,87333.0,0.01148]
[1767071606642,0.01069806,87339.0,87333.0,0.01148]
[1767071606845,0.01144911,87343.0,87333.0,0.01148]
[1767071607075,0.01069987,87342.0,87333.0,0.01148]
[1767071607307,0.01144911,87343.0,87333.0,0.01148]
[1767071607308,0.01069987,87341.0,87333.0,0.01148]
[1767071607575,0.01069987,87340.0,87333.0,0.01148]
[1767071607780,0.01069987,87339.0,87333.0,0.01148]
[1767071608009,0.01069987,87338.0,87333.0,0.01148]
[1767071608128,0.01144911,87343.0,87333.0,0.01148]
[1767071608329,0.01070234,87342.0,87333.0,0.01148]
[1767071608571,0.01070234,87341.0,87333.0,0.01148]
[1767071608884,0.01070234,87340.0,87333.0,0.01148]
[1767071609184,0.01070234,87339.0,87333.0,0.01148]
[1767071609386,0.01070234,87338.0,87333.0,0.01148]
[1767071609586,0.01070234,87337.0,87333.0,0.01148]
[1767071609727,0.01070234,87336.0,87333.0,0.01148]
[1767071609931,0.01144898,87344.0,87333.0,0.01148]
[1767071610283,0.01071171,87343.0,87333.0,0.01148]
[1767071610493,0.01071171,87342.0,87333.0,0.01148]
[1767071610691,0.01071171,87341.0,87333.0,0.01148]
[1767071610899,0.01071171,87340.0,87333.0,0.01148]
[1767071611074,0.01071171,87339.0,87333.0,0.01148]
[1767071611271,0.01071171,87338.0,87333.0,0.01148]
[1767071611478,0.01071171,87337.0,87333.0,0.01148]
[1767071611646,0.01071171,87336.0,87333.0,0.01148]
[1767071611994,0.01071171,87335.0,87333.0,0.01148]
[1767071612158,0.01144898,87344.0,87333.0,0.01148]
[1767071612359,0.01071351,87343.0,87333.0,0.01148]
[1767071612590,0.01071351,87342.0,87333.0,0.01148]
[1767071612790,0.01071351,87341.0,87333.0,0.01148]
[1767071612989,0.01144911,87343.0,87333.0,0.01148]
[1767071612990,0.01071351,87340.0,87333.0,0.01148]
[1767071613262,0.01071351,87339.0,87333.0,0.01148]
[1767071613471,0.01071351,87338.0,87333.0,0.01148]
[1767071613677,0.01071351,87337.0,87333.0,0.01148]
[1767071613837,0.01071351,87336.0,87333.0,0.01148]
[1767071614017,3.51e-06,87335.0,87333.0,0.01148]
[1767071614357,0.01144911,87343.0,87333.0,0.01148]
[1767071615107,0.01144898,87344.0,87333.0,0.01148]
[1767071615260,0.01144911,87343.0,87333.0,0.01148]
[1767071615774,0.02468384,87345.0,87333.0,0.01148]
[1767071615939,0.03613243,87347.0,87334.0,0.01145029]
[1767071616564,0.01144872,87346.0,87334.0,0.01145029]
[1767071616764,0.01144872,87346.0,87329.0,0.00302]
[1767071616965,0.01144872,87346.0,87330.0,0.51978162]
[1767071617574,0.01144872,87346.0,87332.0,0.01145055]
[1767071617777,0.01144872,87346.0,87334.0,0.01145029]
[1767071617982,0.01144872,87346.0,87333.0,0.01145042]
[1767071618654,0.01144885,87345.0,87333.0,0.01145042]
[1767071619360,0.01144898,87344.0,87331.0,0.01145068]
[1767071619559,0.01144898,87344.0,87332.0,0.01145055]
[1767071620479,0.01144898,87344.0,87331.0,0.01145068]
[1767071620668,0.01144898,87344.0,87330.0,0.53123243]
[1767071621028,0.01144911,87343.0,87330.0,0.53123243]
[1767071621190,0.01144924,87342.0,87330.0,0.53123243]
[1767071621386,0.01144924,87342.0,87330.0,0.51978162]
[1767071621566,0.01144911,87343.0,87330.0,0.51978162]
[1767071621756,0.01144911,87343.0,87331.0,0.01145068]
[1767071622635,0.01144911,87343.0,87330.0,0.53123243]
[1767071623398,0.01144911,87343.0,87331.0,0.01145068]
[1767071623621,0.01144911,87343.0,87330.0,0.53123243]
[1767071623793,0.01144898,87344.0,87331.0,0.01145068]
[1767071623995,0.01144885,87345.0,87331.0,0.01145068]
[1767071624195,0.01144898,87344.0,87332.0,0.01145055]
[1767071624452,0.01144885,87345.0,87332.0,0.01145055]
[1767071625186,0.01144885,87345.0,87333.0,0.01145042]
[1767071625466,0.01144885,87345.0,87332.0,0.01145055]
[1767071625837,0.01144885,87345.0,87333.0,0.01145042]
[1767071626055,0.01071298,87344.0,87333.0,0.01145042]
[1767071626216,0.01071298,87343.0,87333.0,0.01145042]
[1767071626418,0.01071298,87342.0,87333.0,0.01145042]
[1767071626617,0.01071298,87341.0,87333.0,0.01145042]
[1767071626821,0.01071298,87340.0,87333.0,0.01145042]
[1767071627019,0.01071298,87339.0,87333.0,0.01145042]
[1767071627228,0.01071298,87338.0,87333.0,0.01145042]
[1767071627423,0.01071298,87337.0,87333.0,0.01145042]
[1767071627644,0.01071298,87336.0,87333.0,0.01145042]
[1767071627844,0.03613154,87345.0,87333.0,0.01145042]
[1767071628091,0.01071296,87344.0,87333.0,0.01145042]
[1767071628232,0.01071296,87343.0,87333.0,0.01145042]
[1767071628421,0.01071296,87342.0,87333.0,0.01145042]
[1767071628765,0.01071296,87341.0,87333.0,0.01145042]
[1767071628936,0.01071296,87340.0,87333.0,0.01145042]
[1767071629278,0.01071296,87339.0,87333.0,0.01145042]
[1767071629473,0.01071296,87338.0,87332.0,0.01145055]
[1767071629773,0.01071296,87337.0,87331.0,0.01145068]
[1767071630078,0.01071296,87336.0,87332.0,0.01145055]
[1767071630234,0.01144898,87344.0,87331.0,0.01145068]
[1767071630439,0.01071294,87343.0,87331.0,0.01145068]
[1767071630671,0.01071294,87342.0,87331.0,0.01145068]
[1767071630875,0.01071294,87341.0,87331.0,0.01145068]
[1767071631025,0.01071294,87340.0,87331.0,0.01145068]
[1767071631226,0.01071294,87339.0,87331.0,0.01145068]
[1767071631422,0.01071294,87338.0,87332.0,0.01145055]
[1767071631670,0.01071294,87337.0,87332.0,0.01145055]
[1767071631871,0.01071294,87336.0,87332.0,0.01145055]
[1767071632048,0.03613154,87345.0,87332.0,0.01145055]
[1767071632359,0.01071294,87344.0,87332.0,0.01145055]
[1767071632555,0.01071294,87343.0,87331.0,0.01145068]
[1767071632765,0.01071294,87342.0,87331.0,0.01145068]
[1767071632980,0.01071294,87341.0,87331.0,0.01145068]
[1767071633192,0.01071294,87340.0,87331.0,0.01145068]
[1767071633365,0.01071294,87339.0,87331.0,0.01145068]
[1767071633585,0.01071294,87338.0,87332.0,0.01145055]
[1767071633747,0.01071294,87337.0,87332.0,0.01145055]
[1767071633952,0.01071294,87336.0,87332.0,0.01145055]
[1767071634150,0.01144898,87344.0,87332.0,0.01145055]
[1767071634351,0.01071311,87343.0,87332.0,0.01145055]
[1767071634551,0.01071311,87342.0,87332.0,0.01145055]
[1767071634808,0.01071311,87341.0,87331.0,0.01145068]
[1767071635159,0.01071311,87340.0,87330.0,0.53123243]
[1767071635345,0.01071311,87339.0,87331.0,0.01145068]
[1767071635504,0.01071311,87338.0,87331.0,0.01145068]
[1767071635850,0.01071311,87337.0,87332.0,0.01145055]
[1767071636146,0.01071311,87336.0,87332.0,0.01145055]
[1767071636356,0.03613681,87344.0,87332.0,0.01145055]
[1767071636563,0.01071541,87343.0,87332.0,0.01145055]
[1767071636765,0.01071541,87342.0,87331.0,0.01145068]
[1767071636918,0.01071541,87341.0,87331.0,0.01145068]
[1767071637123,0.03613681,87344.0,87331.0,0.01145068]
[1767071637124,0.01071541,87340.0,87332.0,0.01145055]
[1767071637345,0.01071541,87339.0,87332.0,0.01145055]
[1767071637557,0.01071541,87338.0,87332.0,0.01145055]
[1767071637756,0.03613681,87344.0,87332.0,0.01145055]
[1767071637757,0.01071541,87337.0,87332.0,0.01145055]
[1767071637913,0.01071541,87336.0,87332.0,0.01145055]
[1767071638113,0.03613681,87344.0,87332.0,0.01145055]
[1767071638340,0.01071762,87343.0,87332.0,0.01145055]
[1767071638535,0.01071762,87342.0,87332.0,0.01145055]
[1767071638792,0.01144898,87344.0,87331.0,0.01145068]
[1767071638793,0.01071762,87341.0,87331.0,0.01145068]
[1767071639000,0.01071762,87340.0,87331.0,0.01145068]
[1767071639212,0.01071762,87339.0,87331.0,0.01145068]
[1767071639518,0.01071762,87338.0,87331.0,0.01145068]
[1767071639642,0.01071762,87337.0,87332.0,0.01145055]
[1767071639850,0.01071762,87336.0,87332.0,0.01145055]
[1767071640032,0.03613668,87345.0,87332.0,0.15992055]
[1767071640237,0.01071801,87344.0,87333.0,0.01145042]
[1767071640457,0.58847096,87350.0,87336.0,0.01145003]
[1767071640458,0.01071801,87343.0,87336.0,0.01145003]
[1767071640677,0.01148,87349.0,87341.0,0.01144937]
[1767071640898,0.01148,87349.0,87340.0,0.06869639]
[1767071641115,0.0001461,87351.0,87342.0,0.01144924]
[1767071641552,0.0001461,87351.0,87341.0,0.01144937]
[1767071641750,0.01148,87354.0,87343.0,0.01144911]
[1767071641954,0.0001461,87360.0,87345.0,0.20571426]
[1767071642171,0.0001461,87360.0,87348.0,0.01144845]
[1767071642327,0.01159298,87360.0,87350.0,0.51978162]
[1767071642533,0.01159298,87360.0,87347.0,0.01144859]
[1767071642534,0.0001461,87360.0,87347.0,0.01144859]
[1767071642938,0.0001461,87360.0,87345.0,0.22864311]
[1767071642939,0.01144714,87358.0,87346.0,0.01144872]
[1767071643171,0.01144701,87359.0,87347.0,0.01144859]
[1767071643388,0.01144701,87359.0,87346.0,0.01144872]
[1767071644047,0.01144701,87359.0,87344.0,0.14847]
[1767071644048,0.06868407,87357.0,87344.0,0.14847]
[1767071644258,0.01144793,87352.0,87344.0,0.01148]
[1767071644456,0.0114478,87353.0,87344.0,0.01148]
[1767071645640,0.01144767,87354.0,87344.0,0.0096]
[1767071646677,0.0114478,87353.0,87344.0,0.0096]
[1767071646876,0.01144767,87354.0,87344.0,0.0096]
[1767071647076,0.0114478,87353.0,87344.0,0.0096]
[1767071650854,0.01144767,87354.0,87344.0,0.0096]
[1767071651207,0.0114478,87353.0,87344.0,0.0096]
[1767071652573,0.01070002,87352.0,87344.0,0.0096]
[1767071652771,0.0114478,87353.0,87344.0,0.0096]
[1767071652975,0.01069998,87352.0,87344.0,0.0096]
[1767071653179,0.0114478,87353.0,87344.0,0.0096]
[1767071653376,0.01069894,87352.0,87344.0,0.0096]
[1767071653596,0.01144767,87354.0,87344.0,0.0096]
[1767071653802,0.02214675,87353.0,87344.0,0.0096]
[1767071654030,0.01069895,87352.0,87344.0,0.0096]
[1767071654224,0.0114478,87353.0,87344.0,0.0096]
[1767071654425,0.02214675,87352.0,87344.0,0.0096]
[1767071654574,0.01144793,87352.0,87344.0,0.0096]
[1767071657112,0.0114478,87353.0,87344.0,0.0096]